bitfinex/quotes_SOLUSD_20241016
["timestamp","ask_amount","ask_price","bid_price","bid_amount"]
[1729087752162,0.626951,155.93,155.91,6.4138]
[1729087752532,0.626951,155.93,155.92,6.4135]
[1729087752748,0.626951,155.93,155.91,6.4137]
[1729087752928,0.626951,155.93,155.9,16.0355]
[1729087753334,0.626951,155.93,155.92,6.4135]
[1729087753733,0.626951,155.93,155.91,20.0]
[1729087753935,0.626951,155.93,155.9,16.0355]
[1729087754131,0.626951,155.93,155.88,6.415]
[1729087754437,0.626951,155.93,155.87,20.0]
[1729087754638,0.626951,155.93,155.86,22.4555]
[1729087754853,6.4144,155.9,155.83,6.4169]
[1729087755061,0.626951,155.93,155.85,6.4163]
[1729087755363,0.626951,155.93,155.83,65.12251802]
[1729087755564,6.4136,155.92,155.85,6.4164]
[1729087755738,0.626951,155.93,155.84,16.0418]
[1729087756256,0.626951,155.93,155.85,20.0]
[1729087756561,0.626951,155.93,155.88,0.1]
[1729087756734,0.626951,155.93,155.92,26.4135]
[1729087757130,0.726951,156.09,156.02,6.4093]
[1729087757131,15.3562,156.09,156.02,6.4093]
[1729087757381,21.7628,156.09,156.03,6.409]
[1729087757657,0.79464288,156.1,155.97,1.2815073]
[1729087757871,0.79464288,156.1,156.05,6.4081]
[1729087758055,0.79464288,156.1,156.03,16.0222]
[1729087758363,0.604799,156.1,156.03,16.0222]
[1729087758549,0.604799,156.1,156.05,6.4081]
[1729087758863,0.604799,156.1,156.04,6.4085]
[1729087759071,0.604799,156.1,156.06,6.4077]
[1729087759253,0.604799,156.1,156.04,20.0]
[1729087759436,0.604799,156.1,156.04,26.4085]
[1729087759636,0.604799,156.1,156.02,16.0227]
[1729087759837,6.4069,156.08,156.02,16.0227]
[1729087760071,0.604799,156.1,156.02,16.0227]
[1729087760238,6.4066,156.09,156.02,16.0227]
[1729087760443,6.4069,156.08,156.0,6.4101]
[1729087760745,6.408,156.06,155.98,16.0269]
[1729087760952,0.604799,156.1,155.98,16.0269]
[1729087760953,6.4071,156.08,155.99,20.0]
[1729087761143,6.4071,156.08,156.0,6.4099]
[1729087761341,0.604799,156.1,156.02,16.0228]
[1729087761564,0.604799,156.1,156.07,6.4073]
[1729087761735,0.604799,156.1,156.08,7.68783202]
[1729087762182,0.604799,156.1,156.08,1.28093202]
[1729087762539,0.604799,156.1,156.09,6.4065]
[1729087762765,0.604799,156.1,156.07,1.28089933]
[1729087762971,0.604799,156.1,156.05,20.0]
[1729087763265,0.604799,156.1,156.04,22.54]
[1729087763266,0.604799,156.1,156.07,6.4073]
[1729087763451,0.604799,156.1,156.04,6.4083]
[1729087763765,0.604799,156.1,156.05,20.0]
[1729087764246,0.604799,156.1,156.06,6.4077]
[1729087764447,0.604799,156.1,156.05,16.0203]
[1729087765464,0.604799,156.1,156.04,6.4085]
[1729087765465,0.604799,156.1,156.04,20.0]
[1729087765761,0.604799,156.1,156.04,6.4082]
[1729087765940,0.604799,156.1,156.04,16.0207]
[1729087766140,0.604799,156.1,156.08,6.4069]
[1729087766363,0.604799,156.1,156.02,0.1]
[1729087766673,0.604799,156.1,156.03,16.0221]
[1729087766974,0.604799,156.1,156.06,22.4269]
[1729087767263,0.604799,156.1,156.06,16.0193]
[1729087767470,0.604799,156.1,156.01,51.25389761]
[1729087767644,0.604799,156.1,156.04,20.0]
[1729087767838,0.604799,156.1,156.04,6.4085]
[1729087768041,0.604799,156.1,156.03,26.409]
[1729087768868,0.604799,156.1,156.02,16.0232]
[1729087769080,0.604799,156.1,156.09,6.4065]
[1729087769646,0.604799,156.1,156.09,7.68716176]
[1729087770344,0.604799,156.1,156.09,57.98083576]
[1729087770573,6.4016,156.22,156.15,6.4039]
[1729087770751,6.4006,156.24,156.16,6.4035]
[1729087770951,0.6849086,156.26,156.16,1.28004774]
[1729087771150,0.6849086,156.26,156.12,20.0]
[1729087771357,0.6849086,156.26,156.09,7.77179082]
[1729087771358,6.3256,156.23,156.09,22.3074]
[1729087771571,6.4041,156.15,156.09,6.2913]
[1729087771958,6.4034,156.17,156.1,6.4061]
[1729087772197,6.4037,156.16,156.09,12.6978]
[1729087772468,16.0042,156.21,156.04,1.28064085]
[1729087772469,6.4049,156.14,156.05,6.5779]
[1729087772653,16.0073,156.18,156.05,6.5779]
[1729087772848,32.0087,156.21,156.07,16.0179]
[1729087773076,6.404,156.16,156.09,6.4064]
[1729087773279,32.0087,156.21,156.07,16.0179]
[1729087773462,6.4041,156.15,156.08,6.4065]
[1729087773779,32.0087,156.21,156.07,16.0179]
[1729087773967,6.4044,156.15,156.07,22.425]
[1729087774167,6.4048,156.14,156.07,22.425]
[1729087774373,6.4057,156.11,156.04,22.4296]
[1729087774883,6.4064,156.1,156.04,16.0214]
[1729087775079,6.4064,156.1,156.04,22.4299]
[1729087775797,6.4057,156.11,156.04,16.0214]
[1729087775975,16.0093,156.16,156.05,6.4081]
[1729087776282,6.4049,156.13,156.07,6.4073]
[1729087776673,6.4045,156.14,156.07,6.4073]
[1729087777069,6.4045,156.14,156.08,30.0]
[1729087777884,6.4058,156.11,156.05,6.4078]
[1729087778190,6.4053,156.12,156.05,6.4078]
[1729087778360,6.1312,156.13,156.01,6.2203]
[1729087778566,6.4078,156.06,156.01,6.2203]
[1729087779464,6.4074,156.07,156.01,6.2203]
[1729087779865,6.4053,156.12,156.01,6.3203]
[1729087780086,15.4371,156.15,156.05,6.4081]
[1729087780288,6.4069,156.09,156.02,26.409]
[1729087780671,6.4081,156.06,156.01,6.2203]
[1729087780872,16.0151,156.11,156.03,30.0]
[1729087781282,6.4078,156.06,156.03,30.0]
[1729087781792,16.0151,156.11,155.98,20.0]
[1729087781998,0.1,156.14,155.96,45.25739097]
[1729087781999,32.0276,156.12,155.99,30.0]
[1729087782205,6.4102,156.01,155.99,30.0]
[1729087782496,16.022,156.04,155.94,6.4124]
[1729087783268,16.022,156.04,155.92,22.4472]
[1729087783495,16.022,156.04,155.92,16.0338]
[1729087783709,6.4114,155.98,155.92,16.0338]
[1729087783884,16.022,156.04,155.92,16.0338]
[1729087784398,6.411,155.99,155.92,22.4471]
[1729087784878,6.411,155.99,155.93,20.0]
[1729087785078,32.0445,156.04,155.89,6.1812]
[1729087785281,6.4116,155.97,155.9,6.4142]
[1729087785491,6.4116,155.97,155.9,6.5142]
[1729087785673,6.4116,155.97,155.9,6.4142]
[1729087785875,6.4114,155.98,155.9,6.4142]
[1729087786075,16.0236,156.02,155.9,6.5142]
[1729087786386,16.0236,156.02,155.92,20.0]
[1729087786592,6.4114,155.98,155.92,20.0]
[1729087786983,6.4119,155.96,155.9,20.0]
[1729087787382,6.4119,155.96,155.89,28.5327]
[1729087788693,6.4119,155.96,155.9,20.0]
[1729087788892,6.4127,155.94,155.9,20.0]
[1729087789408,23.776884,156.03,155.9,20.0]
[1729087789589,16.024,156.02,155.91,0.1]
[1729087789992,6.4112,155.98,155.91,6.5138]
[1729087790204,6.4118,155.97,155.92,20.0]
[1729087790383,6.4111,155.98,155.92,20.0]
[1729087790695,16.024,156.02,155.92,20.0]
[1729087790889,15.0858,156.05,155.92,0.22549]
[1729087791108,6.41,156.01,155.95,6.4122]
[1729087792286,6.4102,156.01,155.95,6.4122]
[1729087792483,6.4106,155.99,155.94,26.4127]
[1729087792711,6.4106,155.99,155.95,51.25389761]
[1729087793011,6.4106,155.99,155.93,16.0321]
[1729087793012,21.9913,156.16,156.04,1.1]
[1729087793307,6.4063,156.1,156.04,1.1]
[1729087794304,16.0113,156.14,156.04,1.1]
[1729087794508,6.4066,156.09,156.04,1.1]
[1729087794797,6.4059,156.11,156.04,1.1]
[1729087795000,6.4056,156.12,156.04,17.1214]
[1729087795183,6.4058,156.11,156.04,17.1214]
[1729087795379,21.9913,156.16,156.04,1.1]
[1729087795380,6.4063,156.1,156.04,1.1]
[1729087795801,6.4065,156.09,156.04,1.1]
[1729087796809,16.0105,156.15,156.04,1.1]
[1729087797291,6.4061,156.1,156.04,1.1]
[1729087797483,16.0105,156.15,156.04,1.1]
[1729087798091,6.4061,156.11,156.04,1.1]
[1729087798291,6.4061,156.11,156.04,7.5082]
[1729087798617,6.4061,156.11,156.04,6.4082]
[1729087799314,16.0105,156.15,156.02,36.0227]
[1729087799490,6.4066,156.09,156.03,6.4089]
[1729087799690,6.4062,156.1,156.04,6.4085]
[1729087800200,6.4057,156.12,156.06,6.4077]
[1729087800391,21.9913,156.16,156.05,20.0]
[1729087800596,6.4057,156.11,156.06,16.0188]
[1729087800786,21.9913,156.16,156.06,16.0188]
[1729087800982,6.4036,156.17,156.11,6.4057]
[1729087801228,6.4036,156.17,156.07,51.25389761]
[1729087801229,16.3696,156.21,156.1,51.25389761]
[1729087801512,16.3696,156.21,156.11,16.0142]
[1729087801718,32.3745,156.21,156.08,37.29761861]
[1729087801897,6.4048,156.14,156.08,36.0169]
[1729087802097,16.007,156.19,156.08,36.0169]
[1729087802303,16.0113,156.14,156.02,6.2391]
[1729087802607,6.4077,156.07,156.02,6.2391]
[1729087802801,22.3258,156.12,156.0,16.2018]
[1729087803112,22.3258,156.12,155.95,1.46567123]
[1729087803113,6.4103,156.0,155.94,16.031]
[1729087803407,6.4098,156.01,155.94,22.4436]
[1729087803589,16.0184,156.07,155.94,16.031]
[1729087803786,23.876884,156.1,155.97,16.0285]
[1729087803991,6.4082,156.05,155.97,16.0285]
[1729087804211,6.4073,156.07,156.0,6.4101]
[1729087804387,6.4081,156.06,155.99,22.437]
[1729087804594,23.776884,156.1,155.93,0.2]
[1729087804796,23.776884,156.1,155.98,16.0276]
[1729087805119,23.776884,156.1,155.98,22.4383]
[1729087805408,6.4092,156.03,155.96,6.4116]
[1729087805616,6.4092,156.03,155.96,6.4118]
[1729087805821,16.0178,156.08,155.95,16.0306]
[1729087806004,6.4095,156.02,155.95,22.4425]
[1729087806390,6.4102,156.01,155.95,16.0306]
[1729087806585,6.4104,156.0,155.92,12.9647]
[1729087806788,16.0208,156.05,155.92,6.5516]
[1729087807012,6.411,155.99,155.91,22.4476]
[1729087807249,6.3767,156.03,155.9,6.4143]
[1729087807250,23.776884,156.01,155.9,6.4143]
[1729087807399,6.4114,155.98,155.91,6.64768342]
[1729087807621,6.4123,155.95,155.91,6.64768342]
[1729087807928,6.4135,155.92,155.82,6.2129]
[1729087808096,6.4132,155.93,155.84,6.4164]
[1729087808418,6.4141,155.91,155.83,16.0431]
[1729087808630,6.4152,155.88,155.8,6.418]
[1729087808789,6.4152,155.88,155.79,22.69477712]
[1729087808790,6.1316,155.94,155.79,16.0462]
[1729087808989,6.414,155.91,155.83,6.4171]
[1729087809706,23.776884,155.9,155.79,6.4185]
[1729087809901,6.416,155.86,155.78,22.4664]
[1729087810301,6.4154,155.88,155.79,6.4185]
[1729087810533,6.4156,155.87,155.78,22.4664]
[1729087810699,6.4164,155.85,155.78,16.0472]
[1729087811006,6.4164,155.85,155.76,6.4201]
[1729087811525,23.776884,155.9,155.77,16.0491]
[1729087811825,15.6805,155.91,155.81,6.418]
[1729087812014,15.6805,155.91,155.8,16.0459]
[1729087812015,6.4155,155.88,155.8,16.0459]
[1729087812198,6.416,155.86,155.77,6.4194]
[1729087812523,0.1,155.89,155.77,6.4194]
[1729087812728,6.4165,155.85,155.76,22.47]
[1729087812907,6.4167,155.85,155.76,16.0499]
[1729087813098,6.4148,155.89,155.8,6.4184]
[1729087813299,15.6805,155.91,155.81,6.4179]
[1729087813798,6.4145,155.9,155.82,6.4176]
[1729087814401,15.6805,155.91,155.82,6.4176]
[1729087814601,15.6805,155.91,155.82,16.0437]
[1729087814819,6.4149,155.89,155.8,6.4183]
[1729087815023,15.6805,155.91,155.82,6.4174]
[1729087815324,6.0316,155.94,155.82,51.25389761]
[1729087815514,15.6983,155.97,155.88,6.4151]
[1729087815924,22.1098,155.97,155.89,6.4147]
[1729087816235,22.1098,155.97,155.87,22.4541]
[1729087816236,15.6983,155.97,155.87,22.4541]
[1729087816431,15.6983,155.97,155.83,6.4712]
[1729087816603,6.4136,155.92,155.83,16.0425]
[1729087817126,0.1,155.96,155.83,16.0425]
[1729087817127,6.4141,155.91,155.83,22.4596]
[1729087817334,23.776884,155.96,155.83,16.0425]
[1729087817627,0.2,156.1,155.92,83.31979761]
[1729087817837,6.408,156.06,155.97,22.4394]
[1729087817998,6.4094,156.02,155.93,22.4452]
[1729087818197,6.4094,156.02,155.93,16.0321]
[1729087818925,6.2481,156.05,155.96,16.0296]
[1729087818926,12.5565,156.05,155.96,16.0296]
[1729087819110,12.5565,156.05,155.97,6.4111]
[1729087819310,0.1,156.04,155.92,16.0335]
[1729087819610,0.1,156.0,155.88,16.0371]
[1729087820035,22.6178,156.05,155.83,1.5667999]
[1729087820036,6.4097,156.02,155.95,6.4122]
[1729087820202,29.026,156.05,155.97,6.4111]
[1729087820408,29.026,156.05,155.9,51.25389761]
[1729087820409,29.026,156.05,155.9,51.35389761]
[1729087820606,6.4086,156.04,155.97,16.0285]
[1729087820822,22.6178,156.05,155.91,32.0693]
[1729087821003,6.4095,156.02,155.93,16.032]
[1729087821202,6.4091,156.03,155.95,6.412]
[1729087821420,22.6178,156.05,155.97,16.0285]
[1729087821723,6.4095,156.02,155.94,6.4123]
[1729087821898,22.7178,156.05,155.94,6.4123]
[1729087822099,0.1,156.04,155.93,16.0323]
[1729087822302,6.4106,155.99,155.93,16.0323]
[1729087822823,6.4122,155.96,155.89,22.4507]
[1729087823032,6.4112,155.98,155.91,6.4135]
[1729087823333,6.4111,155.98,155.9,6.4139]
[1729087823709,6.4114,155.97,155.9,6.4139]
[1729087824210,6.4114,155.97,155.91,6.4138]
[1729087824631,23.776884,156.04,155.82,32.0863]
[1729087824632,23.976884,155.99,155.85,16.041]
[1729087824806,0.1,155.98,155.85,16.041]
[1729087825005,6.4129,155.94,155.87,6.4155]
[1729087825308,6.4136,155.92,155.86,6.4159]
[1729087825611,0.2,155.97,155.85,16.041]
[1729087825922,6.4135,155.92,155.85,22.4573]
[1729087826122,6.4131,155.93,155.86,6.4159]
[1729087826636,6.414,155.91,155.85,16.041]
[1729087827313,0.1,155.95,155.85,16.041]
[1729087827633,6.4163,155.86,155.77,16.0483]
[1729087827828,16.1363,155.9,155.77,16.0483]
[1729087828007,23.776884,155.89,155.77,16.0483]
[1729087828208,6.4165,155.85,155.78,6.4192]
[1729087828408,23.876884,155.89,155.77,16.0483]
[1729087828609,6.4172,155.84,155.77,16.0483]
[1729087828822,6.4172,155.84,155.77,22.4676]
[1729087829719,6.4172,155.83,155.77,16.0483]
[1729087829919,6.4172,155.84,155.77,16.0483]
[1729087830534,0.1,155.91,155.8,16.0461]
[1729087830724,0.1,155.89,155.8,16.0461]
[1729087831033,6.4164,155.85,155.78,6.4189]
[1729087831328,6.4173,155.83,155.76,16.4293318]
[1729087831538,32.069,155.92,155.76,16.4293318]
[1729087831539,0.1,155.86,155.76,16.4293318]
[1729087831720,6.4181,155.81,155.76,16.4293318]
[1729087831920,6.4189,155.79,155.76,0.3800318]
[1729087832427,6.4197,155.77,155.76,0.3800318]
[1729087834435,30.196584,155.77,155.76,0.3800318]
[1729087836327,6.4218,155.72,155.66,22.4845]
[1729087836635,6.4214,155.73,155.67,6.4238]
[1729087836832,6.421,155.74,155.67,6.4238]
[1729087837036,0.1,155.8,155.63,32.1263]
[1729087837269,47.9149,155.83,155.67,32.1179]
[1729087837270,16.045,155.82,155.67,32.1179]
[1729087837541,16.145,155.82,155.71,22.4764]
[1729087838035,16.145,155.82,155.7,6.4225]
[1729087838036,0.2,155.81,155.7,6.4225]
[1729087838338,6.4197,155.77,155.71,6.422]
[1729087838539,6.4197,155.77,155.7,16.0563]
[1729087838914,6.4198,155.77,155.71,6.4221]
[1729087839250,23.776884,155.81,155.67,32.1179]
[1729087839413,40.021184,155.82,155.71,6.4221]
[1729087839614,6.4201,155.76,155.7,16.0564]
[1729087839814,6.4201,155.76,155.7,22.4789]
[1729087840035,23.876884,155.79,155.67,16.0595]
[1729087840240,0.1,155.78,155.67,16.0595]
[1729087840535,6.4206,155.75,155.69,6.4226]
[1729087841047,6.4219,155.72,155.67,16.0595]
[1729087841235,22.48250731,155.83,155.62,6.65313224]
[1729087841236,0.1,155.82,155.62,6.65313224]
[1729087841422,0.1,155.82,155.73,6.4212]
[1729087841423,6.4189,155.79,155.73,6.4212]
[1729087841624,6.4189,155.79,155.65,71.25389761]
[1729087841625,6.4206,155.75,155.69,6.4226]
[1729087841916,6.4202,155.76,155.7,6.4225]
[1729087842134,6.4206,155.75,155.7,6.4225]
[1729087842331,6.4214,155.73,155.68,16.0585]
[1729087842521,6.4221,155.71,155.66,6.4242]
[1729087842732,6.4226,155.7,155.64,22.4869]
[1729087843045,6.4238,155.67,155.62,6.4258]
[1729087843344,6.4235,155.68,155.62,6.4258]
[1729087843520,6.423,155.69,155.63,6.4254]
[1729087843919,6.4236,155.68,155.62,6.4255]
[1729087844127,32.4996,155.73,155.61,6.6565]
[1729087844331,32.4996,155.73,155.63,16.0629]
[1729087844625,6.4231,155.69,155.64,6.425]
[1729087845125,6.4226,155.7,155.64,6.425]
[1729087845323,6.4214,155.73,155.68,6.4234]
[1729087845844,6.1324,155.74,155.66,16.0605]
[1729087845845,6.4223,155.71,155.66,16.0605]
[1729087846342,6.4223,155.71,155.66,22.4846]
[1729087847336,6.4242,155.66,155.61,16.0654]
[1729087847552,0.1,155.71,155.6,7.0662282]
[1729087847724,6.4243,155.66,155.6,7.0662282]
[1729087848322,6.4239,155.67,155.61,6.4262]
[1729087849227,6.4243,155.66,155.61,6.4262]
[1729087850025,16.0563,155.71,155.6,0.6396282]
[1729087850229,23.876884,155.73,155.61,16.0657]
[1729087850429,28.84227907,155.74,155.63,16.0631]
[1729087850637,6.1324,155.74,155.61,51.25389761]
[1729087850839,16.1494,155.77,155.61,51.25389761]
[1729087850840,16.0494,155.77,155.66,16.0605]
[1729087851047,6.4219,155.72,155.66,16.0605]
[1729087851233,6.4223,155.71,155.66,22.4846]
[1729087851436,16.0494,155.77,155.66,16.0605]
[1729087851632,6.4222,155.71,155.66,16.0605]
[1729087852530,6.4208,155.75,155.69,6.4226]
[1729087852727,16.0494,155.77,155.68,22.481]
[1729087852931,16.0494,155.77,155.68,16.0576]
[1729087853133,6.4218,155.72,155.68,16.0576]
[1729087854946,16.0494,155.77,155.68,16.0576]
[1729087855141,6.421,155.74,155.68,22.4806]
[1729087855340,6.4222,155.71,155.66,6.4238]
[1729087855561,16.0494,155.77,155.61,51.35389761]
[1729087855856,6.4214,155.73,155.68,6.4233]
[1729087856554,6.4219,155.72,155.67,16.059]
[1729087857158,6.4214,155.73,155.68,6.4233]
[1729087857359,6.4198,155.77,155.72,6.4215]
[1729087857653,37.8367,155.83,155.71,16.0548]
[1729087857835,6.4197,155.77,155.72,6.4217]
[1729087858158,6.4193,155.78,155.73,6.4211]
[1729087858953,6.4202,155.76,155.71,22.4767]
[1729087859531,16.0457,155.81,155.71,16.0548]
[1729087859738,6.4208,155.75,155.69,20.0]
[1729087860058,6.42,155.77,155.71,6.422]
[1729087860226,6.42,155.77,155.7,16.056]
[1729087860427,6.4196,155.78,155.73,6.4212]
[1729087860655,16.0457,155.81,155.7,16.056]
[1729087860861,23.776884,155.8,155.7,16.056]
[1729087861163,6.4217,155.72,155.68,6.4231]
[1729087861353,6.4217,155.72,155.67,22.4832]
[1729087861952,6.4214,155.73,155.68,6.4233]
[1729087862268,32.093,155.8,155.67,16.0595]
[1729087862269,32.1856,155.84,155.67,31.69238163]
[1729087862555,6.4193,155.78,155.73,22.4739]
[1729087862759,37.8368,155.83,155.75,6.4203]
[1729087862760,6.4185,155.8,155.75,6.4203]
[1729087863259,6.4177,155.82,155.77,6.4193]
[1729087863558,6.4181,155.81,155.77,6.4193]
[1729087863868,38.7278,155.87,155.76,22.47]
[1729087864068,6.4184,155.8,155.76,16.05]
[1729087864864,6.4182,155.81,155.76,22.47]
[1729087865034,6.4175,155.83,155.79,6.4188]
[1729087865235,6.4156,155.87,155.82,6.4176]
[1729087865464,6.4148,155.89,155.81,16.0442]
[1729087865650,13.06600925,155.91,155.85,6.416]
[1729087865962,16.6162,155.92,155.84,16.0412]
[1729087866163,6.4138,155.92,155.86,6.4158]
[1729087866347,6.65525237,155.93,155.87,16.0389]
[1729087866550,16.6162,155.98,155.87,16.0389]
[1729087866551,6.4125,155.95,155.87,16.0389]
[1729087866749,6.4125,155.95,155.89,6.4144]
[1729087867072,6.4137,155.92,155.87,16.0389]
[1729087867303,6.4144,155.9,155.84,6.4165]
[1729087867453,6.4149,155.89,155.83,22.4594]
[1729087867648,48.0792,156.0,155.89,6.4147]
[1729087867964,48.0792,156.0,155.85,51.44286101]
[1729087867965,15.4513,156.03,155.93,6.413]
[1729087868263,15.4513,156.03,155.85,51.44286101]
[1729087868264,16.0246,156.01,155.88,16.0369]
[1729087869475,6.4115,155.97,155.91,6.4139]
[1729087869649,6.4119,155.96,155.9,6.4142]
[1729087869966,6.4123,155.95,155.89,6.4147]
[1729087870368,6.4136,155.92,155.86,6.4158]
[1729087870572,6.4136,155.92,155.85,6.4163]
[1729087870743,6.4123,155.95,155.88,6.4151]
[1729087870941,22.0949,156.01,155.91,6.4139]
[1729087871156,6.4112,155.98,155.91,6.4139]
[1729087871350,6.4127,155.94,155.89,16.0368]
[1729087871550,22.0949,156.01,155.85,22.4572]
[1729087871551,6.4137,155.92,155.85,22.4572]
[1729087871753,6.4137,155.92,155.86,6.4157]
[1729087872164,16.0242,156.02,155.88,16.0379]
[1729087872354,16.0242,156.02,155.89,15.0488]
[1729087872768,6.4124,155.95,155.89,15.0488]
[1729087873553,16.0265,156.0,155.89,15.0488]
[1729087873755,6.4101,156.01,155.94,6.4125]
[1729087873965,6.4101,156.01,155.92,6.4591]
[1729087874173,6.4101,156.01,155.95,6.4122]
[1729087875381,16.0223,156.04,155.93,16.0318]
[1729087875673,6.4109,155.99,155.94,6.4126]
[1729087875995,6.4103,156.0,155.94,6.4126]
[1729087876280,6.4102,156.0,155.94,6.4126]
[1729087877375,6.4102,156.0,155.93,16.0318]
[1729087877376,16.0223,156.04,155.93,22.4449]
[1729087877559,6.41,156.01,155.95,6.4122]
[1729087877953,16.0223,156.04,155.93,16.0318]
[1729087877954,6.4109,155.99,155.93,22.4446]
[1729087878361,6.4109,155.99,155.94,6.4126]
[1729087878957,16.0223,156.04,155.93,16.0318]
[1729087879157,6.0703,156.06,155.92,6.4591]
[1729087879358,15.3657,156.08,155.94,51.44286101]
[1729087879655,6.4087,156.04,155.98,22.4383]
[1729087879993,47.4014,156.08,155.92,6.4591]
[1729087880288,6.4106,156.0,155.95,16.0304]
[1729087880661,6.4109,155.99,155.95,16.0304]
[1729087881157,6.4102,156.0,155.95,16.0304]
[1729087881368,6.4102,156.0,155.95,22.4425]
[1729087881582,6.4099,156.01,155.95,16.0304]
[1729087881761,6.4103,156.0,155.95,16.0304]
[1729087881963,6.4103,156.0,155.95,22.4426]
[1729087882357,6.4099,156.01,155.96,6.4118]
[1729087882676,16.0214,156.05,155.95,16.0304]
[1729087882860,16.0231,156.03,155.92,22.4925]
[1729087883565,6.4113,155.98,155.93,6.413]
[1729087884179,16.0258,156.0,155.92,6.4591]
[1729087884368,6.4126,155.95,155.92,6.4591]
[1729087884778,16.0258,156.0,155.92,6.4591]
[1729087885093,6.4111,155.98,155.93,6.413]
[1729087886072,6.4095,156.02,155.97,6.411]
[1729087886278,32.1272,156.12,155.99,16.0256]
[1729087886279,28.79379922,156.1,155.99,16.0256]
[1729087886567,6.1303,156.1,155.99,16.0256]
[1729087886771,6.4095,156.02,155.98,15.8003]
[1729087886989,6.4098,156.01,155.98,15.8003]
[1729087887304,6.4098,156.01,155.97,6.4114]
[1729087887473,6.4094,156.02,155.98,6.411]
[1729087887782,32.0356,156.08,155.94,16.3878]
[1729087887987,16.022,156.04,155.94,16.3878]
[1729087888201,6.4114,155.98,155.94,22.8004]
[1729087888365,6.4107,155.99,155.94,22.8004]
[1729087888884,16.022,156.04,155.96,6.4117]
[1729087889372,16.022,156.04,155.94,16.3878]
[1729087889569,6.4108,155.99,155.94,22.8004]
[1729087890189,16.022,156.04,155.97,6.4114]
[1729087890190,6.4095,156.02,155.97,6.4114]
[1729087890490,16.022,156.04,155.95,16.0297]
[1729087890694,6.4111,155.98,155.94,16.3878]
[1729087890994,16.0242,156.02,155.93,20.0]
[1729087891286,6.4115,155.97,155.93,26.413]
[1729087892163,6.411,155.98,155.94,6.4126]
[1729087892573,6.4114,155.97,155.93,6.413]
[1729087892987,6.4114,155.97,155.92,28.9058]
[1729087893186,6.4108,155.99,155.92,22.4924]
[1729087893398,6.4112,155.98,155.94,6.4126]
[1729087894185,6.4103,156.0,155.96,6.4117]
[1729087894490,16.5566,156.04,155.94,16.0312]
[1729087894692,6.4112,155.98,155.94,22.4438]
[1729087895273,16.0234,156.03,155.92,6.4591]
[1729087895495,6.4122,155.96,155.92,6.4591]
[1729087896488,6.4122,155.96,155.92,12.8725]
[1729087896799,6.4122,155.96,155.92,6.4591]
[1729087897324,6.4115,155.97,155.92,12.8723]
[1729087898006,16.0272,155.99,155.91,16.0344]
[1729087898195,6.4127,155.94,155.9,22.6424]
[1729087898409,6.4127,155.94,155.89,6.4146]
[1729087898778,6.4127,155.94,155.9,6.4143]
[1729087899083,16.0272,155.99,155.9,6.4143]
[1729087899283,6.4116,155.97,155.93,6.4131]
[1729087899818,6.411,155.99,155.92,16.0333]
[1729087899981,6.411,155.99,155.95,6.4121]
[1729087900802,6.412,155.96,155.92,22.4467]
[1729087901206,6.4136,155.92,155.89,16.0365]
[1729087901418,16.0304,155.96,155.86,31.516]
[1729087901724,16.0304,155.96,155.84,6.1398]